[Event "*** Titled Tuesday Blitz"]
[Site "Chess.com"]
[Date "2021.04.27"]
[Round "2"]
[White "Superfelix"]
[Black "OhanyanEminChess"]
[Result "1-0"]
[WhiteElo "2489"]
[BlackElo "2647"]
[TimeControl "180+1"]
[EndTime "10:19:27 PDT"]
[Termination "Superfelix won on time"]

1. e4 {[%clk 0:03:00.9]} 1... e5 {[%clk 0:02:59.3]} 2. Nf3 {[%clk 0:03:00.7]}
2... Nc6 {[%clk 0:02:59]} 3. d4 {[%clk 0:03:01.3]} 3... exd4 {[%clk 0:02:58]} 4.
Nxd4 {[%clk 0:03:01.4]} 4... Nf6 {[%clk 0:02:58.1]} 5. Nc3 {[%clk 0:02:59.1]}
5... Nxe4 {[%clk 0:02:58.3]} 6. Nxe4 {[%clk 0:02:53.3]} 6... Qe7 {[%clk
0:02:56.4]} 7. f3 {[%clk 0:02:21.5]} 7... d5 {[%clk 0:02:56.3]} 8. Nxc6 {[%clk
0:02:20]} 8... bxc6 {[%clk 0:02:57.2]} 9. Qe2 {[%clk 0:02:13.1]} 9... dxe4
{[%clk 0:02:50.5]} 10. Qxe4 {[%clk 0:02:12.8]} 10... Bf5 {[%clk 0:02:44.3]} 11.
Qxe7+ {[%clk 0:02:06.8]} 11... Bxe7 {[%clk 0:02:45.2]} 12. Bf4 {[%clk
0:02:02.5]} 12... O-O {[%clk 0:02:12.3]} 13. O-O-O {[%clk 0:02:00]} 13... a5
{[%clk 0:01:58]} 14. Bxc7 {[%clk 0:01:53.5]} 14... a4 {[%clk 0:01:57.5]} 15. a3
{[%clk 0:01:48.9]} 15... Bg5+ {[%clk 0:01:52.7]} 16. f4 {[%clk 0:01:44.1]} 16...
Bf6 {[%clk 0:01:52.6]} 17. Bd3 {[%clk 0:01:39.4]} 17... Be6 {[%clk 0:01:46.5]}
18. Be5 {[%clk 0:01:38.1]} 18... Bxe5 {[%clk 0:01:41.7]} 19. fxe5 {[%clk
0:01:39]} 19... Bd5 {[%clk 0:01:42.6]} 20. Rhg1 {[%clk 0:01:33.6]} 20... Ra5
{[%clk 0:01:42.3]} 21. Rde1 {[%clk 0:01:27]} 21... Re8 {[%clk 0:01:42.1]} 22.
Re2 {[%clk 0:01:25]} 22... c5 {[%clk 0:01:39.9]} 23. c3 {[%clk 0:01:13.7]} 23...
Ra7 {[%clk 0:00:53.5]} 24. Rd1 {[%clk 0:01:10.2]} 24... Bb3 {[%clk 0:00:51.4]}
25. Rde1 {[%clk 0:01:05.8]} 25... Kf8 {[%clk 0:00:44.2]} 26. Bc2 {[%clk
0:00:52.8]} 26... Bc4 {[%clk 0:00:42.7]} 27. Re4 {[%clk 0:00:51.2]} 27... Bb5
{[%clk 0:00:41.3]} 28. e6 {[%clk 0:00:45.2]} 28... f6 {[%clk 0:00:25.9]} 29. g4
{[%clk 0:00:35.5]} 29... h6 {[%clk 0:00:25.6]} 30. h4 {[%clk 0:00:34.7]} 30...
Ke7 {[%clk 0:00:24.7]} 31. g5 {[%clk 0:00:32.4]} 31... hxg5 {[%clk 0:00:20.8]}
32. hxg5 {[%clk 0:00:33.3]} 32... Rh8 {[%clk 0:00:16.9]} 33. gxf6+ {[%clk
0:00:31.2]} 33... gxf6 {[%clk 0:00:17.8]} 34. Rg1 {[%clk 0:00:30.5]} 34... Kd6
{[%clk 0:00:17.2]} 35. e7 {[%clk 0:00:29.7]} 35... Re8 {[%clk 0:00:04.1]} 36.
Rd1+ {[%clk 0:00:29.6]} 36... Kc7 {[%clk 0:00:03.6]} 37. Re6 {[%clk 0:00:27.3]}
37... Bd7 {[%clk 0:00:03.6]} 38. Re3 {[%clk 0:00:24.4]} 38... f5 {[%clk
0:00:03.9]} 39. Re5 {[%clk 0:00:23]} 39... f4 {[%clk 0:00:04.3]} 40. Rxc5+
{[%clk 0:00:22.5]} 40... Kb6 {[%clk 0:00:04.6]} 41. Re5 {[%clk 0:00:22.2]} 41...
Bg4 {[%clk 0:00:05]} 42. Rd6+ {[%clk 0:00:20.6]} 42... Kc7 {[%clk 0:00:04.7]}
43. Rd4 {[%clk 0:00:21.5]} 43... Bd7 {[%clk 0:00:01.8]} 44. Rxf4 {[%clk
0:00:17.8]} 44... Rh8 {[%clk 0:00:02.5]} 45. Rf8 {[%clk 0:00:16.5]} 45... Rh1+
{[%clk 0:00:03.1]} 46. Bd1 {[%clk 0:00:16]} 46... Ra6 {[%clk 0:00:01.8]} 47.
e8=Q {[%clk 0:00:14.3]} 47... Bxe8 {[%clk 0:00:02.3]} 48. Rfxe8 {[%clk
0:00:14.8]} 48... Rd6 {[%clk 0:00:03]} 49. R8e7+ {[%clk 0:00:15.1]} 49... Kd8
{[%clk 0:00:02.8]} 50. Re1 {[%clk 0:00:16]} 50... Rh2 {[%clk 0:00:03.2]} 51. Bf3
{[%clk 0:00:14.3]} 51... Rdd2 {[%clk 0:00:02.8]} 52. Re8+ {[%clk 0:00:13]} 52...
Kc7 {[%clk 0:00:03.1]} 53. R1e7+ {[%clk 0:00:13.9]} 53... Kd6 {[%clk 0:00:02.4]}
54. Rd8+ {[%clk 0:00:11.9]} 54... Kc5 {[%clk 0:00:01.2]} 55. Rxd2 {[%clk
0:00:12.8]} 55... Rh1+ {[%clk 0:00:01.8]} 56. Kc2 {[%clk 0:00:13]} 56... Rh4
{[%clk 0:00:01.7]} 57. Re5+ {[%clk 0:00:12.8]} 57... Kb6 {[%clk 0:00:01.6]} 58.
Re4 {[%clk 0:00:13]} 1-0

[Event "*** Titled Tuesday Blitz"]
[Site "Chess.com"]
[Date "2021.04.27"]
[Round "2"]
[White "Redzishchess"]
[Black "Margency"]
[Result "0-1"]
[WhiteElo "2312"]
[BlackElo "2664"]
[TimeControl "180+1"]
[EndTime "10:19:30 PDT"]
[Termination "Margency won by checkmate"]

1. d4 {[%clk 0:03:00.9]} 1... d5 {[%clk 0:02:58.4]} 2. Nf3 {[%clk 0:03:01.8]}
2... e6 {[%clk 0:02:58.9]} 3. c4 {[%clk 0:03:00.6]} 3... c5 {[%clk 0:02:59.1]}
4. cxd5 {[%clk 0:03:00.4]} 4... exd5 {[%clk 0:03:00]} 5. g3 {[%clk 0:03:00.1]}
5... Nc6 {[%clk 0:02:59.3]} 6. Bg2 {[%clk 0:03:00.4]} 6... Nf6 {[%clk
0:02:59.9]} 7. O-O {[%clk 0:03:00.4]} 7... Be7 {[%clk 0:03:00.6]} 8. dxc5 {[%clk
0:02:52.2]} 8... Bxc5 {[%clk 0:03:01.5]} 9. Nc3 {[%clk 0:02:41.4]} 9... O-O
{[%clk 0:03:00.4]} 10. Bg5 {[%clk 0:02:41.1]} 10... d4 {[%clk 0:03:00.7]} 11.
Bxf6 {[%clk 0:02:14.6]} 11... Qxf6 {[%clk 0:03:00.5]} 12. Ne4 {[%clk 0:02:14.9]}
12... Qe7 {[%clk 0:03:00.4]} 13. Nxc5 {[%clk 0:02:15.3]} 13... Qxc5 {[%clk
0:03:01.3]} 14. Rc1 {[%clk 0:02:14.5]} 14... Qb6 {[%clk 0:03:01.9]} 15. Qd2
{[%clk 0:02:04.5]} 15... Bg4 {[%clk 0:02:59.5]} 16. Rfd1 {[%clk 0:02:03.3]}
16... Rad8 {[%clk 0:02:59.2]} 17. Rc4 {[%clk 0:01:55.8]} 17... Be6 {[%clk
0:02:49]} 18. Ra4 {[%clk 0:01:37.4]} 18... Qb5 {[%clk 0:01:56.5]} 19. b3 {[%clk
0:01:30.4]} 19... Rd7 {[%clk 0:01:56.8]} 20. Nxd4 {[%clk 0:01:01.8]} 20... Nxd4
{[%clk 0:01:49.8]} 21. Rxd4 {[%clk 0:01:02.7]} 21... Rxd4 {[%clk 0:01:50]} 22.
Qxd4 {[%clk 0:01:03.6]} 22... Qxe2 {[%clk 0:01:49.9]} 23. Bxb7 {[%clk
0:00:36.1]} 23... Qxa2 {[%clk 0:01:39.5]} 24. Ra1 {[%clk 0:00:36]} 24... Qxb3
{[%clk 0:01:37.3]} 25. Rxa7 {[%clk 0:00:35.9]} 25... Bh3 {[%clk 0:01:23.8]} 26.
Qa1 {[%clk 0:00:27]} 26... g6 {[%clk 0:01:06.5]} 27. Bh1 {[%clk 0:00:16.5]}
27... h5 {[%clk 0:00:45.4]} 28. Ra8 {[%clk 0:00:16.3]} 28... Bc8 {[%clk
0:00:32]} 29. Qc1 {[%clk 0:00:12.2]} 29... Bh3 {[%clk 0:00:15.9]} 30. Rxf8+
{[%clk 0:00:13.1]} 30... Kxf8 {[%clk 0:00:16.5]} 31. Bg2 {[%clk 0:00:10.7]}
31... Be6 {[%clk 0:00:15.4]} 32. Qh6+ {[%clk 0:00:09.7]} 32... Kg8 {[%clk
0:00:14.7]} 33. Qc1 {[%clk 0:00:10.6]} 33... Kh7 {[%clk 0:00:13.8]} 34. h4
{[%clk 0:00:11]} 34... Qb4 {[%clk 0:00:12.7]} 35. Bf3 {[%clk 0:00:08.9]} 35...
Qb3 {[%clk 0:00:12.2]} 36. Kg2 {[%clk 0:00:08.2]} 36... Bh3+ {[%clk 0:00:11.8]}
37. Kxh3 {[%clk 0:00:07.9]} 37... Qxf3 {[%clk 0:00:12.7]} 38. Qe1 {[%clk
0:00:06.7]} 38... Kg8 {[%clk 0:00:11.2]} 39. Kh2 {[%clk 0:00:06.7]} 39... Kg7
{[%clk 0:00:10.4]} 40. Qe5+ {[%clk 0:00:06.4]} 40... Qf6 {[%clk 0:00:10.3]} 41.
Qe3 {[%clk 0:00:05.7]} 41... Qf5 {[%clk 0:00:10.3]} 42. Kg2 {[%clk 0:00:05.2]}
42... Kf6 {[%clk 0:00:08.5]} 43. Qd4+ {[%clk 0:00:04.9]} 43... Qe5 {[%clk
0:00:08.4]} 44. Qb6+ {[%clk 0:00:05.1]} 44... Kf5 {[%clk 0:00:08.4]} 45. Qd8
{[%clk 0:00:03]} 45... Qe4+ {[%clk 0:00:07.8]} 46. Kg1 {[%clk 0:00:02]} 46...
Qe1+ {[%clk 0:00:07.6]} 47. Kg2 {[%clk 0:00:02]} 47... Qe4+ {[%clk 0:00:08.2]}
48. Kg1 {[%clk 0:00:02.4]} 48... f6 {[%clk 0:00:06.4]} 49. Qd7+ {[%clk
0:00:02.6]} 49... Qe6 {[%clk 0:00:05.7]} 50. Qd3+ {[%clk 0:00:02.9]} 50... Qe4
{[%clk 0:00:06]} 51. Qd7+ {[%clk 0:00:03]} 51... Ke5 {[%clk 0:00:06]} 52. Qb5+
{[%clk 0:00:03]} 52... Qd5 {[%clk 0:00:05.7]} 53. Qe8+ {[%clk 0:00:03.5]} 53...
Kf5 {[%clk 0:00:05.8]} 54. Qc8+ {[%clk 0:00:03.7]} 54... Ke4 {[%clk 0:00:05]}
55. Qc2+ {[%clk 0:00:03.1]} 55... Kf3 {[%clk 0:00:03.5]} 56. Qc3+ {[%clk
0:00:02.6]} 56... Kg4 {[%clk 0:00:03.3]} 57. Qxf6 {[%clk 0:00:03.1]} 57... Kh3
{[%clk 0:00:03.5]} 58. Qa1 {[%clk 0:00:01.4]} 58... Qg2# {[%clk 0:00:03.4]} 0-1

[Event "*** Titled Tuesday Blitz"]
[Site "Chess.com"]
[Date "2021.04.27"]
[Round "2"]
[White "MikeSailer"]
[Black "DanielTitichoca"]
[Result "1-0"]
[WhiteElo "2174"]
[BlackElo "2395"]
[TimeControl "180+1"]
[EndTime "10:19:31 PDT"]
[Termination "MikeSailer won on time"]

1. d4 {[%clk 0:03:00.3]} 1... Nf6 {[%clk 0:02:59.7]} 2. Nf3 {[%clk 0:03:01.2]}
2... c5 {[%clk 0:03:00]} 3. c3 {[%clk 0:03:00.4]} 3... cxd4 {[%clk 0:03:00.9]}
4. cxd4 {[%clk 0:03:00.5]} 4... Nc6 {[%clk 0:03:01.8]} 5. Nc3 {[%clk 0:03:01]}
5... d5 {[%clk 0:03:02.1]} 6. Bf4 {[%clk 0:03:00.6]} 6... Bf5 {[%clk 0:03:01.6]}
7. Qb3 {[%clk 0:02:59.8]} 7... Rc8 {[%clk 0:03:02.5]} 8. e3 {[%clk 0:02:55.5]}
8... Na5 {[%clk 0:02:57]} 9. Qa4+ {[%clk 0:02:49.2]} 9... Bd7 {[%clk 0:02:55.9]}
10. Bb5 {[%clk 0:02:49.2]} 10... e6 {[%clk 0:02:45.4]} 11. Bxd7+ {[%clk
0:02:46.8]} 11... Nxd7 {[%clk 0:02:44.1]} 12. Ne5 {[%clk 0:02:47.2]} 12... Nc6
{[%clk 0:02:32]} 13. O-O {[%clk 0:02:37.8]} 13... Ndxe5 {[%clk 0:02:28.2]} 14.
Bxe5 {[%clk 0:02:37.3]} 14... f6 {[%clk 0:02:25.7]} 15. Bg3 {[%clk 0:02:37.2]}
15... Bd6 {[%clk 0:02:26.3]} 16. Bxd6 {[%clk 0:02:30.6]} 16... Qxd6 {[%clk
0:02:24.7]} 17. Nb5 {[%clk 0:02:31.2]} 17... Qb8 {[%clk 0:02:23.1]} 18. Qa3
{[%clk 0:02:28.1]} 18... Kd7 {[%clk 0:02:13.9]} 19. Rac1 {[%clk 0:02:22.6]}
19... a6 {[%clk 0:02:11.2]} 20. Nc3 {[%clk 0:02:20.2]} 20... Qd6 {[%clk
0:02:08.6]} 21. Qa4 {[%clk 0:02:19.5]} 21... Qb4 {[%clk 0:02:03.7]} 22. Qd1
{[%clk 0:02:09.6]} 22... Ne7 {[%clk 0:01:49.2]} 23. e4 {[%clk 0:01:59.5]} 23...
Rc6 {[%clk 0:01:27.3]} 24. exd5 {[%clk 0:01:56.7]} 24... Nxd5 {[%clk 0:01:23.4]}
25. Nxd5 {[%clk 0:01:57.2]} 25... exd5 {[%clk 0:01:23.7]} 26. Qg4+ {[%clk
0:01:55.2]} 26... Kd6 {[%clk 0:01:17.6]} 27. Rxc6+ {[%clk 0:01:43.7]} 27... Kxc6
{[%clk 0:01:02]} 28. Qxg7 {[%clk 0:01:32.7]} 28... Qf8 {[%clk 0:00:58.5]} 29.
Rc1+ {[%clk 0:01:28.5]} 29... Kb6 {[%clk 0:00:52.4]} 30. Qc7+ {[%clk 0:01:13.2]}
30... Ka7 {[%clk 0:00:52.1]} 31. g3 {[%clk 0:01:02.5]} 31... Qb4 {[%clk
0:00:44.3]} 32. Qc5+ {[%clk 0:00:59.9]} 32... Qxc5 {[%clk 0:00:43.8]} 33. Rxc5
{[%clk 0:01:00.5]} 33... Rd8 {[%clk 0:00:31.1]} 34. Rc7 {[%clk 0:01:00.4]} 34...
Re8 {[%clk 0:00:16.1]} 35. Kf1 {[%clk 0:00:54.8]} 35... Re4 {[%clk 0:00:15.7]}
36. Rxh7 {[%clk 0:00:53.5]} 36... Rxd4 {[%clk 0:00:15.5]} 37. Ke2 {[%clk
0:00:48.4]} 37... Rc4 {[%clk 0:00:12.6]} 38. Kd3 {[%clk 0:00:45.1]} 38... Rc1
{[%clk 0:00:11.8]} 39. h4 {[%clk 0:00:40.9]} 39... Rb1 {[%clk 0:00:09.8]} 40.
Rf7 {[%clk 0:00:34.1]} 40... Rxb2 {[%clk 0:00:05.3]} 41. Rxf6 {[%clk 0:00:34.4]}
41... Rxa2 {[%clk 0:00:06.2]} 42. h5 {[%clk 0:00:34.6]} 42... Ra1 {[%clk
0:00:05.1]} 43. g4 {[%clk 0:00:34.8]} 43... Rh1 {[%clk 0:00:05.5]} 44. h6 {[%clk
0:00:35.2]} 44... a5 {[%clk 0:00:05.8]} 45. g5 {[%clk 0:00:35.9]} 45... a4
{[%clk 0:00:06.3]} 46. Rf4 {[%clk 0:00:30.3]} 46... b5 {[%clk 0:00:04.5]} 47.
Kc3 {[%clk 0:00:30.1]} 47... Kb6 {[%clk 0:00:04.4]} 48. Kb2 {[%clk 0:00:27]}
48... Ka5 {[%clk 0:00:03.5]} 49. Rd4 {[%clk 0:00:22]} 49... b4 {[%clk
0:00:03.2]} 50. Rxd5+ {[%clk 0:00:22.5]} 50... Kb6 {[%clk 0:00:03.7]} 51. Rd4
{[%clk 0:00:16.1]} 51... Kc5 {[%clk 0:00:03.8]} 52. Rg4 {[%clk 0:00:14.1]} 52...
Rh2 {[%clk 0:00:04.2]} 53. Rf4 {[%clk 0:00:13.4]} 53... Rg2 {[%clk 0:00:02.9]}
54. h7 {[%clk 0:00:12.5]} 54... Rh2 {[%clk 0:00:01.6]} 55. g6 {[%clk 0:00:12.8]}
55... a3+ {[%clk 0:00:01.9]} 56. Kb3 {[%clk 0:00:13]} 56... Rh3+ {[%clk
0:00:01.3]} 57. f3 {[%clk 0:00:13.8]} 1-0

[Event "*** Titled Tuesday Blitz"]
[Site "Chess.com"]
[Date "2021.04.27"]
[Round "2"]
[White "RafalBRC"]
[Black "VinzentSpitzl"]
[Result "1/2-1/2"]
[WhiteElo "2171"]
[BlackElo "2404"]
[TimeControl "180+1"]
[EndTime "10:19:33 PDT"]
[Termination "Game drawn by repetition"]

1. d4 {[%clk 0:03:00.9]} 1... f5 {[%clk 0:02:58.9]} 2. Nc3 {[%clk 0:02:56.6]}
2... Nf6 {[%clk 0:02:58.5]} 3. Bg5 {[%clk 0:02:54]} 3... g6 {[%clk 0:02:56.4]}
4. e3 {[%clk 0:02:40.7]} 4... Bg7 {[%clk 0:02:54.8]} 5. Nf3 {[%clk 0:02:35.5]}
5... d6 {[%clk 0:02:43.7]} 6. Bc4 {[%clk 0:02:32.7]} 6... e6 {[%clk 0:02:36]} 7.
e4 {[%clk 0:02:20.6]} 7... fxe4 {[%clk 0:02:30.4]} 8. Nxe4 {[%clk 0:02:21.5]}
8... O-O {[%clk 0:02:29.4]} 9. O-O {[%clk 0:02:04.9]} 9... d5 {[%clk 0:02:10.2]}
10. Nxf6+ {[%clk 0:02:03.3]} 10... Bxf6 {[%clk 0:02:09.8]} 11. Bxf6 {[%clk
0:02:04.1]} 11... Qxf6 {[%clk 0:02:07.1]} 12. Bd3 {[%clk 0:02:04.8]} 12... Nc6
{[%clk 0:02:06.7]} 13. c3 {[%clk 0:02:04.6]} 13... e5 {[%clk 0:02:01.7]} 14.
dxe5 {[%clk 0:01:49.7]} 14... Nxe5 {[%clk 0:02:02.6]} 15. Nxe5 {[%clk
0:01:50.3]} 15... Qxe5 {[%clk 0:02:03]} 16. Re1 {[%clk 0:01:49.1]} 16... Qf6
{[%clk 0:01:56.3]} 17. Qd2 {[%clk 0:01:46.4]} 17... Be6 {[%clk 0:01:45.8]} 18.
Re3 {[%clk 0:01:46.5]} 18... c6 {[%clk 0:01:39]} 19. Rae1 {[%clk 0:01:46.9]}
19... Rae8 {[%clk 0:01:38.6]} 20. b4 {[%clk 0:01:35.9]} 20... Kg7 {[%clk
0:01:28.4]} 21. Qc2 {[%clk 0:01:28.5]} 21... Bd7 {[%clk 0:01:25.4]} 22. h3
{[%clk 0:01:17.1]} 22... Re6 {[%clk 0:01:17.5]} 23. Rxe6 {[%clk 0:01:09.3]}
23... Bxe6 {[%clk 0:01:18.4]} 24. Re3 {[%clk 0:01:07.4]} 24... Rf7 {[%clk
0:01:12.1]} 25. a4 {[%clk 0:01:04.2]} 25... b6 {[%clk 0:01:01.6]} 26. Rf3 {[%clk
0:00:59.7]} 26... Qe5 {[%clk 0:01:00.1]} 27. Re3 {[%clk 0:00:59]} 27... Qd6
{[%clk 0:00:59.9]} 28. Qe2 {[%clk 0:00:54.2]} 28... Bd7 {[%clk 0:00:57.9]} 29.
g3 {[%clk 0:00:49.1]} 29... c5 {[%clk 0:00:46]} 30. bxc5 {[%clk 0:00:43.5]}
30... bxc5 {[%clk 0:00:46.2]} 31. Bb5 {[%clk 0:00:39.5]} 31... Bf5 {[%clk
0:00:36.1]} 32. g4 {[%clk 0:00:36.9]} 32... Bc8 {[%clk 0:00:27.1]} 33. Be8
{[%clk 0:00:32.7]} 33... Rc7 {[%clk 0:00:23.9]} 34. Bb5 {[%clk 0:00:14.6]} 34...
Rf7 {[%clk 0:00:19.5]} 35. Be8 {[%clk 0:00:13.7]} 35... Rc7 {[%clk 0:00:19.5]}
36. Bb5 {[%clk 0:00:13.3]} 36... a6 {[%clk 0:00:18.8]} 37. Be8 {[%clk
0:00:13.5]} 37... Qf6 {[%clk 0:00:14.3]} 38. a5 {[%clk 0:00:11.6]} 38... d4
{[%clk 0:00:14.3]} 39. cxd4 {[%clk 0:00:11.4]} 39... cxd4 {[%clk 0:00:15.2]} 40.
Rf3 {[%clk 0:00:12.2]} 40... Qd6 {[%clk 0:00:12.7]} 41. Ba4 {[%clk 0:00:12]}
41... Bb7 {[%clk 0:00:11.7]} 42. Rd3 {[%clk 0:00:09.8]} 42... Rc1+ {[%clk
0:00:11.8]} 43. Bd1 {[%clk 0:00:09.4]} 43... Qd5 {[%clk 0:00:10]} 44. f3 {[%clk
0:00:07.7]} 44... Qd6 {[%clk 0:00:07.7]} 45. Kg2 {[%clk 0:00:07]} 45... Rc7
{[%clk 0:00:06]} 46. Qd2 {[%clk 0:00:06.5]} 46... Rd7 {[%clk 0:00:05.1]} 47. Ba4
{[%clk 0:00:06]} 47... Rd8 {[%clk 0:00:04.8]} 48. Bb3 {[%clk 0:00:06.3]} 48...
Bc6 {[%clk 0:00:04.7]} 49. Bc4 {[%clk 0:00:06.2]} 49... Bb5 {[%clk 0:00:04.6]}
50. Bxb5 {[%clk 0:00:06.3]} 50... axb5 {[%clk 0:00:05.5]} 51. Qe1 {[%clk
0:00:06.1]} 51... Rd7 {[%clk 0:00:05]} 52. Qe4 {[%clk 0:00:04.6]} 52... b4
{[%clk 0:00:04.9]} 53. a6 {[%clk 0:00:04.7]} 53... Qxa6 {[%clk 0:00:04.8]} 54.
Rxd4 {[%clk 0:00:05.1]} 54... Rxd4 {[%clk 0:00:05.2]} 55. Qxd4+ {[%clk 0:00:06]}
55... Kg8 {[%clk 0:00:04.3]} 56. Qxb4 {[%clk 0:00:06.3]} 56... Qe2+ {[%clk
0:00:04.8]} 57. Kg3 {[%clk 0:00:06.7]} 57... Qe5+ {[%clk 0:00:05.4]} 58. Qf4
{[%clk 0:00:06.2]} 58... Qe1+ {[%clk 0:00:05.9]} 59. Kg2 {[%clk 0:00:05.9]}
59... Qe2+ {[%clk 0:00:06.4]} 60. Kg3 {[%clk 0:00:06]} 60... Qe1+ {[%clk
0:00:06.9]} 61. Kg2 {[%clk 0:00:06.2]} 61... Qe2+ {[%clk 0:00:07.5]} 62. Kg3
{[%clk 0:00:06.5]} 62... Qe1+ {[%clk 0:00:08]} 1/2-1/2

[Event "*** Titled Tuesday Blitz"]
[Site "Chess.com"]
[Date "2021.04.27"]
[Round "2"]
[White "TeukkaSalama"]
[Black "aljado"]
[Result "1-0"]
[WhiteElo "2367"]
[BlackElo "2043"]
[TimeControl "180+1"]
[EndTime "10:19:33 PDT"]
[Termination "TeukkaSalama won on time"]

1. d4 {[%clk 0:03:00.9]} 1... d5 {[%clk 0:02:59.1]} 2. Bf4 {[%clk 0:03:01]} 2...
Bf5 {[%clk 0:02:57.4]} 3. e3 {[%clk 0:03:00.6]} 3... e6 {[%clk 0:02:54.4]} 4. c4
{[%clk 0:02:59.6]} 4... c6 {[%clk 0:02:52.5]} 5. Nf3 {[%clk 0:02:59.2]} 5... Nf6
{[%clk 0:02:50.8]} 6. Qb3 {[%clk 0:02:59]} 6... Qb6 {[%clk 0:02:48.7]} 7. c5
{[%clk 0:02:59.3]} 7... Qxb3 {[%clk 0:02:43.3]} 8. axb3 {[%clk 0:03:00.2]} 8...
a6 {[%clk 0:02:42.6]} 9. Nbd2 {[%clk 0:02:55.7]} 9... Nbd7 {[%clk 0:02:42.7]}
10. b4 {[%clk 0:02:54.3]} 10... Be7 {[%clk 0:02:42.4]} 11. Nb3 {[%clk
0:02:53.3]} 11... O-O {[%clk 0:02:38.2]} 12. Na5 {[%clk 0:02:52.4]} 12... Ra7
{[%clk 0:02:30.9]} 13. h3 {[%clk 0:02:49.7]} 13... Rc8 {[%clk 0:02:17.7]} 14. g4
{[%clk 0:02:45.2]} 14... Be4 {[%clk 0:02:15.7]} 15. Bg2 {[%clk 0:02:44.7]} 15...
Ne8 {[%clk 0:02:09.6]} 16. O-O {[%clk 0:02:40.2]} 16... Nc7 {[%clk 0:02:08.3]}
17. Nd2 {[%clk 0:02:16.7]} 17... Bd3 {[%clk 0:02:05.6]} 18. Rfe1 {[%clk
0:02:14.5]} 18... Nb5 {[%clk 0:01:58.6]} 19. f3 {[%clk 0:02:07.7]} 19... f6
{[%clk 0:01:56.8]} 20. Bf1 {[%clk 0:02:00.6]} 20... Bxf1 {[%clk 0:01:53.6]} 21.
Nxf1 {[%clk 0:01:59.5]} 21... e5 {[%clk 0:01:50.4]} 22. Bg3 {[%clk 0:01:54.7]}
22... Kf7 {[%clk 0:01:49.6]} 23. Rad1 {[%clk 0:01:44]} 23... g5 {[%clk
0:01:31.5]} 24. Bf2 {[%clk 0:01:38.9]} 24... h5 {[%clk 0:01:24.6]} 25. Ng3
{[%clk 0:01:34.5]} 25... hxg4 {[%clk 0:01:23]} 26. hxg4 {[%clk 0:01:34.2]} 26...
Rh8 {[%clk 0:01:20.8]} 27. Nf5 {[%clk 0:01:33.7]} 27... Bd8 {[%clk 0:01:17.3]}
28. Kg2 {[%clk 0:01:26.3]} 28... Bxa5 {[%clk 0:01:16.5]} 29. bxa5 {[%clk
0:01:26.8]} 29... Raa8 {[%clk 0:01:16.2]} 30. Rh1 {[%clk 0:01:19.8]} 30... Raf8
{[%clk 0:01:09.9]} 31. Rh6 {[%clk 0:01:01.7]} 31... Rxh6 {[%clk 0:01:07.2]} 32.
Nxh6+ {[%clk 0:01:02.6]} 32... Kg6 {[%clk 0:01:05.9]} 33. Rh1 {[%clk 0:01:02.3]}
33... Rh8 {[%clk 0:01:04.2]} 34. Nf5 {[%clk 0:01:02.5]} 34... Rxh1 {[%clk
0:01:03]} 35. Kxh1 {[%clk 0:01:03.4]} 35... Kf7 {[%clk 0:01:01.4]} 36. Kg2
{[%clk 0:00:59.8]} 36... Ke6 {[%clk 0:00:59.7]} 37. Kf1 {[%clk 0:00:58.9]} 37...
Kf7 {[%clk 0:00:59]} 38. Ke2 {[%clk 0:00:59]} 38... Ke6 {[%clk 0:00:58.2]} 39.
Kd3 {[%clk 0:00:59.3]} 39... Nf8 {[%clk 0:00:53.4]} 40. Bg3 {[%clk 0:00:55.4]}
40... Ng6 {[%clk 0:00:52]} 41. Ng7+ {[%clk 0:00:46.4]} 41... Kf7 {[%clk
0:00:50.2]} 42. Nf5 {[%clk 0:00:45.2]} 42... Ke6 {[%clk 0:00:49.6]} 43. Bh2
{[%clk 0:00:44.1]} 43... Nf8 {[%clk 0:00:43.6]} 44. e4 {[%clk 0:00:39.6]} 44...
exd4 {[%clk 0:00:31]} 45. Nxd4+ {[%clk 0:00:39.8]} 45... Nxd4 {[%clk 0:00:29.9]}
46. Kxd4 {[%clk 0:00:40.7]} 46... dxe4 {[%clk 0:00:30]} 47. Kxe4 {[%clk
0:00:40.3]} 47... Nd7 {[%clk 0:00:29.7]} 48. Bd6 {[%clk 0:00:38.8]} 48... Ne5
{[%clk 0:00:14.4]} 49. Bc7 {[%clk 0:00:24.5]} 49... Nc4 {[%clk 0:00:13.3]} 50.
b4 {[%clk 0:00:19.5]} 50... Nd2+ {[%clk 0:00:12.9]} 51. Ke3 {[%clk 0:00:18.8]}
51... Nc4+ {[%clk 0:00:12.3]} 52. Kd4 {[%clk 0:00:17.9]} 52... Ne5 {[%clk
0:00:11.9]} 53. Ke4 {[%clk 0:00:14.7]} 53... Nc4 {[%clk 0:00:11.2]} 54. f4
{[%clk 0:00:13.2]} 54... gxf4 {[%clk 0:00:08.7]} 55. Bxf4 {[%clk 0:00:14.1]}
55... Nb2 {[%clk 0:00:06.2]} 56. Kd4 {[%clk 0:00:11.3]} 56... Nd1 {[%clk
0:00:02.9]} 57. Bg3 {[%clk 0:00:07.3]} 57... Nb2 {[%clk 0:00:02.3]} 58. Kc3
{[%clk 0:00:06]} 58... Nd1+ {[%clk 0:00:01.8]} 59. Kd2 {[%clk 0:00:05.4]} 59...
Nb2 {[%clk 0:00:01.6]} 60. Kc2 {[%clk 0:00:05.3]} 60... Nc4 {[%clk 0:00:01.1]}
61. Kd3 {[%clk 0:00:06.1]} 1-0